bitfinex-derivatives/quotes_ETHF0:USTF0_20240905
["timestamp","ask_amount","ask_price","bid_price","bid_amount"]
[1725528249543,7.7961,2397.6,2397.5,0.00625274]
[1725528250139,14.83886,2397.6,2397.5,0.00625274]
[1725528250938,7.7961,2397.6,2397.5,0.00625274]
[1725528251333,7.379,2397.6,2397.5,0.42337274]
[1725528252835,3.2078,2397.6,2397.5,0.42337274]
[1725528253038,7.379,2397.6,2397.5,0.42337274]
[1725528253445,7.7961,2397.6,2397.5,0.00625274]
[1725528256049,14.83886,2397.6,2397.5,0.00625274]
[1725528260052,14.83886,2397.6,2397.0,0.41719]
[1725528260053,1.04286,2397.4,2397.0,0.41719]
[1725528260245,1.04286,2397.4,2396.7,44.0078]
[1725528260246,3.625,2397.1,2396.9,0.41721]
[1725528260847,3.625,2397.1,2396.7,3.2078]
[1725528260848,0.41721,2397.0,2396.8,0.41723]
[1725528261048,2.88,2397.0,2396.8,0.41723]
[1725528261243,0.41723,2396.9,2396.7,3.62505]
[1725528261449,0.41723,2396.9,2396.8,0.41724]
[1725528262049,0.41722,2396.9,2396.6,40.8]
[1725528262355,0.41722,2396.9,2396.8,0.41723]
[1725528262558,3.29722,2397.0,2396.8,0.41723]
[1725528262856,2.88,2397.0,2396.8,0.41723]
[1725528263951,0.41722,2396.9,2396.8,0.41723]
[1725528264250,0.41722,2396.9,2396.8,0.41724]
[1725528264457,0.41722,2396.9,2396.4,1.04328]
[1725528264458,10.3855639,2396.9,2396.3,1.0899911]
[1725528264656,2.88,2396.4,2395.7,1.0899911]
[1725528264954,6.0878,2396.2,2395.8,40.8]
[1725528265153,6.0878,2396.2,2395.5,4.2977911]
[1725528265448,3.29741,2395.9,2395.5,0.41747]
[1725528265650,0.41742,2395.8,2395.5,0.41746]
[1725528265851,6.50523,2395.7,2395.4,0.41748]
[1725528266157,6.50523,2395.7,2394.8,1.0899911]
[1725528266158,2.88,2395.5,2394.8,1.0899911]
[1725528266370,2.88,2395.1,2394.9,0.41756]
[1725528266855,2.88,2395.1,2394.8,41.21758]
[1725528267054,2.88,2395.1,2394.9,0.41757]
[1725528267248,2.88,2395.1,2394.8,40.8]
[1725528267249,2.88,2395.3,2394.8,40.8]
[1725528267551,2.88,2395.3,2394.9,3.2078]
[1725528267755,2.88,2395.3,2395.1,0.41753]
[1725528267956,3.2078,2395.4,2395.2,0.41752]
[1725528268150,2.88,2395.5,2395.1,0.41753]
[1725528268354,2.88,2395.5,2395.2,0.41751]
[1725528268551,2.88,2395.5,2395.3,0.4175]
[1725528268744,2.88,2395.5,2394.9,3.2078]
[1725528268949,2.88,2395.5,2395.3,0.41749]
[1725528269150,2.88,2395.5,2395.4,0.41748]
[1725528269953,2.88,2395.5,2394.9,4.2517]
[1725528269954,6.0878,2395.7,2395.0,1.04389]
[1725528270156,6.50523,2395.7,2395.3,0.41748]
[1725528270459,6.0878,2395.7,2395.4,0.41747]
[1725528270656,6.50523,2395.7,2395.4,0.41747]
[1725528271246,6.50523,2395.7,2395.3,0.41748]
[1725528271449,2.88,2395.5,2395.2,0.41751]
[1725528271654,2.88,2395.5,2395.3,0.4175]
[1725528271854,2.88,2395.5,2395.2,0.41751]
[1725528272052,3.2975,2395.3,2395.0,0.41754]
[1725528272252,3.2975,2395.3,2394.8,40.8]
[1725528272663,3.2975,2395.3,2394.9,0.41756]
[1725528273158,3.2975,2395.3,2394.8,40.8]
[1725528273458,3.2975,2395.3,2394.9,0.41757]
[1725528273962,3.2975,2395.3,2395.0,0.41755]
[1725528274159,2.88,2395.3,2395.1,0.41753]
[1725528274657,2.88,2395.3,2395.0,0.41754]
[1725528275256,3.2975,2395.3,2395.0,0.41754]
[1725528275759,6.50534,2395.1,2394.8,41.21758]
[1725528276348,6.0878,2395.1,2394.8,41.21758]
[1725528276555,6.0878,2395.1,2394.9,0.41757]
[1725528276765,2.88,2395.1,2394.9,0.41757]
[1725528277264,2.88,2395.1,2395.0,3.62535]
[1725528277463,2.88,2395.1,2395.0,0.41755]
[1725528280463,2.88,2395.1,2394.8,40.8]
[1725528280651,2.88,2394.9,2394.8,0.41759]
[1725528281360,2.88,2395.0,2394.9,0.41757]
[1725528282163,2.88,2395.0,2394.5,3.36705538]
[1725528282365,3.21405274,2395.1,2394.6,0.41762]
[1725528282366,2.88,2394.7,2394.6,0.41762]
[1725528282755,6.09405274,2395.1,2394.6,4.176]
[1725528282959,2.88625274,2395.1,2394.5,3.36705538]
[1725528283160,2.88625274,2395.1,2394.9,0.41757]
[1725528283362,2.88625274,2395.1,2395.0,0.41755]
[1725528284372,0.00625274,2395.1,2395.0,4.59275]
[1725528284956,0.00625274,2395.1,2395.0,5.63664]
[1725528285360,0.00625274,2395.1,2395.0,4.59275]
[1725528286771,0.00625274,2395.1,2395.0,0.41755]
[1725528287072,0.00625274,2395.1,2394.9,0.41757]
[1725528287272,2.88625274,2395.1,2395.0,0.82045]
[1725528287767,10.26925274,2395.1,2394.6,0.4149]
[1725528287970,2.88,2394.7,2394.6,0.83252]
[1725528288866,13.056,2394.7,2394.6,0.83252]
[1725528289064,23.58759833,2394.7,2393.8,3.2078]
[1725528289268,2.88,2394.0,2393.9,0.41774]
[1725528290177,20.99155016,2394.0,2393.2,0.3993]
[1725528290372,6.50565,2393.3,2393.2,0.3993]
[1725528290564,6.0878,2393.3,2392.5,40.8]
[1725528290763,2.88,2392.7,2392.5,40.8]
[1725528290971,3.2078,2393.0,2392.4,3.2078]
[1725528291165,2.88,2392.8,2392.4,3.2078]
[1725528291364,2.88,2392.6,2391.7,2.88]
[1725528291673,2.88626593,2392.4,2392.1,3.2078]
[1725528291974,0.00626593,2392.4,2392.2,41.21803]
[1725528292187,3.85626593,2392.4,2392.1,3.2078]
[1725528292470,3.85626593,2392.4,2391.7,3.2078]
[1725528292471,8.03626593,2392.4,2391.7,3.2078]
[1725528292671,0.00626593,2392.4,2391.9,0.41808]
[1725528292974,3.85,2392.0,2391.8,40.8]
[1725528293168,3.85,2392.0,2391.4,3.2078]
[1725528293375,3.2078,2392.1,2391.3,3.2078]
[1725528293376,3.85,2391.7,2391.3,3.2078]
[1725528293665,0.00626593,2392.4,2391.3,40.8]
[1725528293666,3.2078,2391.8,2391.3,40.8]
[1725528293871,4.409122,2392.0,2391.9,0.41809]
[1725528294070,3.85,2392.1,2391.7,0.41812]
[1725528294367,3.85,2391.9,2391.3,40.8]
[1725528294571,3.85,2391.9,2391.5,3.2078]
[1725528294773,3.85,2391.9,2391.6,0.41814]
[1725528294966,3.2078,2392.1,2392.0,0.41808]
[1725528295274,3.2078,2392.1,2390.9,3.85]
[1725528295275,4.81738081,2391.8,2390.7,0.41829]
[1725528295477,7.0578,2391.6,2390.8,3.2078]
[1725528295663,7.0578,2391.6,2390.5,53.04238557]
[1725528295867,7.0578,2391.6,2391.0,3.2078]
[1725528296067,3.6259,2391.9,2391.2,0.41821]
[1725528296269,3.85,2391.8,2391.1,3.2078]
[1725528296574,3.85,2391.5,2391.1,3.2078]
[1725528297079,3.85,2391.5,2390.5,40.8]
[1725528297080,3.2078,2391.3,2390.9,0.41827]
[1725528297279,7.0578,2391.0,2390.5,40.8]
[1725528297467,7.06406593,2391.0,2390.7,0.41829]
[1725528297773,0.00626593,2391.0,2390.9,0.41827]
[1725528298169,4.18866593,2391.0,2390.7,3.2078]
[1725528298376,4.1824,2390.9,2390.5,40.8]
[1725528298566,3.85,2390.7,2390.0,3.4078]
[1725528298877,3.85,2390.7,2390.3,0.41837]
[1725528299080,3.85,2390.7,2390.0,0.2]
[1725528299276,3.85,2390.7,2390.1,3.2078]
[1725528299595,3.2078,2390.6,2390.1,3.6262]
[1725528299764,3.2078,2390.6,2390.1,0.4184]
[1725528299968,3.2078,2390.6,2390.0,0.2]
[1725528300163,4.56593452,2390.5,2390.0,0.61841]
[1725528300366,3.2078,2390.6,2390.1,3.2078]
[1725528300367,3.85,2390.4,2390.1,3.2078]
[1725528300878,0.00626593,2391.0,2390.1,3.2078]
[1725528300879,4.56593452,2390.5,2390.1,3.2078]
[1725528301071,3.85,2390.7,2390.6,0.41832]
[1725528301266,3.85626593,2391.0,2390.4,3.2078]
[1725528301479,3.21406593,2391.0,2390.5,0.41833]
[1725528301774,8.66691657,2390.9,2390.5,40.8]
[1725528301973,8.66691657,2390.9,2390.5,41.21834]
[1725528302168,3.85,2390.9,2390.5,40.8]
[1725528303271,3.85,2390.9,2390.6,0.41831]
[1725528303475,3.85,2390.9,2390.5,40.8]
[1725528303674,3.85,2390.9,2390.7,0.41829]
[1725528303875,3.85,2390.9,2390.6,0.41831]
[1725528304074,3.85,2390.9,2390.5,40.8]
[1725528304476,3.85,2390.9,2390.8,0.41829]
[1725528304972,8.0324,2390.9,2390.8,0.41829]
[1725528305281,3.85,2390.9,2390.8,0.41829]
[1725528305978,3.85,2390.9,2390.5,40.8]
[1725528305979,8.0324,2390.9,2390.5,40.8]
[1725528306192,3.85,2390.9,2390.8,0.41829]
[1725528306583,3.85,2390.9,2390.8,3.62609]
[1725528306779,0.00626593,2391.0,2390.9,0.41827]
[1725528307179,0.00218559,2391.0,2390.9,0.41827]
[1725528308885,0.00218559,2391.0,2390.9,3.62607]
[1725528309280,5.59e-06,2391.0,2390.9,8.85415]
[1725528309482,3.85,2391.7,2391.6,0.41813]
[1725528309789,3.85,2391.7,2391.5,0.41815]
[1725528310175,3.85,2391.7,2391.6,0.41815]
[1725528310387,3.85,2391.7,2391.3,3.2078]
[1725528310591,3.85626593,2391.7,2391.4,0.41817]
[1725528310785,3.85626593,2391.7,2391.6,0.41815]
[1725528311294,8.03786593,2391.7,2391.6,0.41815]
[1725528311484,0.00626593,2391.7,2391.6,0.41815]
[1725528313887,3.2078,2392.3,2391.6,13.3894]
[1725528314090,4.6644,2392.6,2391.9,3.2078]
[1725528314285,4.6644,2392.6,2392.4,0.418]
[1725528314484,3.85,2392.6,2392.4,0.418]
[1725528314695,3.85,2392.6,2392.0,40.8]
[1725528315097,0.00626593,2392.5,2392.4,0.41801]
[1725528316695,4.18626593,2392.5,2392.2,0.41803]
[1725528316999,4.18626593,2392.5,2392.1,0.00626593]
[1725528317000,4.26804,2392.2,2392.1,0.00626593]
[1725528317489,8.44804,2392.2,2392.1,0.00626593]
[1725528317693,8.03,2392.2,2392.1,0.00626593]
[1725528319292,8.03,2392.2,2392.1,0.42432593]
[1725528319497,3.2078,2392.3,2392.1,0.42430593]
[1725528319695,3.2078,2392.3,2392.1,0.00626593]
[1725528320503,3.2078,2392.3,2392.2,0.41804]
[1725528321397,3.2078,2392.3,2392.2,4.59804]
[1725528321795,3.2078,2392.3,2392.2,0.41804]
[1725528322191,3.2078,2392.3,2392.2,4.59804]
[1725528322392,0.00626593,2392.5,2392.4,0.41801]
[1725528322788,0.00626593,2392.5,2392.4,14.85083]
[1725528322989,3.85,2393.0,2392.8,0.41792]
[1725528323406,3.85,2393.0,2392.9,0.41792]
[1725528323901,0.00626593,2393.2,2393.1,0.41788]
[1725528324094,0.00626593,2393.2,2393.1,3.62568]
[1725528324297,0.00626593,2393.2,2393.1,4.59628]
[1725528324506,0.00626593,2393.2,2393.1,13.80408]
[1725528324711,0.00626593,2393.2,2393.1,7.80408]
[1725528325293,0.00626593,2393.2,2393.1,13.80408]
[1725528325593,0.00626593,2393.2,2393.1,10.59628]
[1725528325799,3.21406593,2393.2,2392.9,0.00626593]
[1725528325993,4.2679,2393.0,2392.9,0.00626593]
[1725528326194,4.89476,2393.0,2392.2,0.41803]
[1725528326394,0.41802,2392.4,2391.7,3.2078]
[1725528326598,4.43428722,2393.0,2391.7,3.2078]
[1725528326599,7.0578,2392.3,2391.7,3.2078]
[1725528326805,7.0578,2392.3,2392.0,0.41807]
[1725528327400,7.0578,2392.3,2392.1,0.41806]
[1725528327797,0.8199,2392.5,2391.9,0.00626593]
[1725528328103,0.4099,2392.5,2392.2,0.41803]
[1725528328809,0.4099,2392.5,2391.9,0.00626593]
[1725528329100,0.4099,2392.5,2392.4,0.41801]
[1725528329910,4.26,2392.7,2392.5,0.41799]
[1725528330106,4.26,2392.7,2392.4,0.41799]
[1725528330298,4.26,2392.7,2392.3,0.41801]
[1725528330599,0.41797,2392.6,2392.2,0.41803]
[1725528330805,4.03479,2392.5,2392.1,0.41806]
[1725528331111,4.03479,2392.5,2391.9,0.79326593]
[1725528331112,3.85,2392.4,2391.9,0.00626593]
[1725528331402,7.47585,2392.2,2391.9,0.00626593]
[1725528331603,7.0578,2392.2,2391.9,0.00626593]
[1725528331808,0.3992,2392.1,2391.9,0.00626593]
[1725528332006,0.3992,2392.1,2392.0,0.41808]
[1725528332507,3.85,2392.4,2392.2,0.41803]
[1725528333597,3.85,2392.4,2391.9,3.21406593]
[1725528333800,3.85,2392.4,2392.2,0.41804]
[1725528335411,3.85,2392.4,2392.3,0.41802]
[1725528335606,3.85,2392.4,2392.2,0.41803]
[1725528335906,3.85,2392.4,2392.3,0.41802]
[1725528337006,0.8049,2392.5,2392.4,0.41801]
[1725528339011,7.3188,2392.8,2392.7,0.41795]
[1725528339315,3.2078,2392.8,2392.7,0.41795]
[1725528341708,0.4248,2393.0,2392.9,1.46272]
[1725528341909,0.00626593,2393.2,2393.1,0.41788]
[1725528342216,0.00626593,2393.2,2393.1,1.4626]
[1725528342415,3.2078,2393.8,2393.7,0.41778]
[1725528342709,0.3842,2393.8,2393.7,0.41778]
[1725528344316,0.00626593,2394.0,2393.9,0.41774]
[1725528344629,0.00626593,2394.0,2393.9,4.59454]
[1725528345503,0.00626593,2394.0,2393.5,0.00626593]
[1725528345504,14.03306593,2394.0,2393.5,0.00626593]
[1725528345703,3.85,2393.7,2393.5,0.42407593]
[1725528346116,3.85,2393.7,2393.5,0.00626593]
[1725528346410,3.85,2393.7,2393.5,0.42407593]
[1725528346710,0.396,2393.9,2393.7,0.41778]
[1725528347113,0.396,2393.9,2393.8,0.41776]
[1725528348813,4.246,2393.9,2393.6,3.2078]
[1725528349008,3.85,2393.7,2392.5,3.2078]
[1725528349209,3.85,2393.2,2392.9,0.41792]
[1725528349409,0.8013,2393.1,2392.7,0.41795]
[1725528349616,0.8013,2393.1,2392.7,0.41794]
[1725528350018,4.0091,2393.1,2392.7,0.42420593]
[1725528350810,4.0091,2393.1,2392.8,0.41794]
[1725528351009,4.0091,2393.1,2392.7,0.00626593]
[1725528351210,4.0091,2393.1,2392.8,0.41793]
[1725528351727,4.0091,2393.1,2392.7,0.42421593]
[1725528351913,4.0091,2393.1,2392.8,0.41794]
[1725528352107,4.0091,2393.1,2393.0,0.4179]
[1725528352315,0.8013,2393.1,2393.0,0.4179]
[1725528354713,0.8013,2393.1,2392.9,0.41791]
[1725528354914,0.8013,2393.1,2392.7,0.00626593]
[1725528355111,0.8013,2393.1,2392.9,0.41791]
[1725528355617,0.8013,2393.1,2393.0,0.4179]
[1725528356122,0.386,2393.1,2393.0,0.4179]
[1725528357314,0.3849,2393.3,2393.2,0.41787]
[1725528360314,3.85,2393.4,2393.2,0.41786]
[1725528360527,3.85,2393.4,2393.3,0.41785]
[1725528361309,0.417,2393.5,2393.4,0.41783]
[1725528361515,0.417,2393.5,2393.0,3.2078]
[1725528361714,0.417,2393.5,2393.4,0.41783]
[1725528362421,0.4308,2393.6,2393.5,0.41781]
[1725528362826,3.85,2393.8,2393.6,0.41779]
[1725528363143,3.85,2393.8,2393.0,3.2078]
[1725528363144,4.96485978,2393.7,2393.0,3.2078]
[1725528363423,3.85,2393.5,2393.4,0.41783]
[1725528363827,3.85,2393.8,2393.5,0.4178]
[1725528364021,3.85,2393.8,2393.6,0.41779]
[1725528364219,3.85,2393.8,2393.6,0.41778]
[1725528364413,0.4549,2393.9,2393.3,4.25243]
[1725528364617,0.4549,2393.9,2393.8,0.41776]
[1725528365323,0.00626593,2394.0,2393.9,0.41774]
[1725528365827,0.00626593,2394.0,2393.6,3.2078]
[1725528366015,0.00626593,2394.0,2393.9,0.41774]
[1725528368722,0.00626593,2394.0,2393.6,0.41778]
[1725528368930,0.00626593,2394.0,2393.2,3.2078]
[1725528368931,3.85,2393.7,2393.3,0.41784]
[1725528369131,0.8888,2393.6,2393.2,3.2078]
[1725528369322,0.8888,2393.6,2393.3,0.41784]
[1725528369528,0.8888,2393.6,2393.2,3.2078]
[1725528369731,7.0578,2393.9,2393.2,3.2078]
[1725528369938,0.00626593,2394.0,2393.8,0.41775]
[1725528370433,0.00626593,2394.0,2393.9,0.41774]
[1725528372028,0.00626593,2394.0,2393.6,0.4221]
[1725528372222,7.47555,2393.9,2393.5,0.41781]
[1725528372435,7.0578,2393.9,2393.6,0.4178]
[1725528372636,7.0578,2393.9,2393.7,0.41777]
[1725528373133,7.47555,2393.9,2393.6,0.41779]
[1725528373337,7.0578,2393.9,2393.7,0.41778]
[1725528374036,7.0578,2393.9,2393.8,0.41776]
[1725528374943,11.2354,2393.9,2393.7,0.41777]
[1725528375135,7.0578,2393.9,2393.7,0.41777]
[1725528375343,7.0578,2393.9,2393.8,0.41776]
[1725528375843,11.2354,2393.9,2393.8,0.41776]
[1725528376040,3.2078,2393.9,2393.8,0.41776]
[1725528376633,3.2078,2393.9,2393.5,0.4216]
[1725528376832,3.2078,2393.9,2393.8,0.41776]
[1725528380740,0.00626593,2394.0,2393.9,0.41774]
[1725528382545,0.42399593,2394.0,2393.8,0.41775]
[1725528382739,0.42399593,2394.0,2393.9,0.41774]
[1725528382934,0.00626593,2394.0,2393.8,0.41775]
[1725528383140,0.41774,2393.9,2393.8,0.41775]
[1725528383340,4.07804,2393.9,2393.8,0.41775]
[1725528384043,6.96804,2393.9,2393.8,0.41775]
[1725528384242,3.3425,2393.9,2393.8,0.41775]
[1725528384547,2.89,2393.9,2393.8,0.41775]
[1725528384753,0.00626593,2394.0,2393.9,0.41774]
[1725528386950,0.00626593,2394.0,2393.9,1.46211]
[1725528387142,0.00626593,2394.0,2393.9,2.50648]
[1725528387345,4.1002,2394.2,2394.1,1.46199]
[1725528387346,0.4437,2394.2,2394.1,1.46199]
[1725528387652,11.0992,2394.8,2394.2,1.04424]
[1725528387836,0.4546,2394.7,2394.6,0.41762]
[1725528389654,0.4546,2394.7,2394.4,0.00626593]
[1725528389655,0.87222,2394.7,2394.4,0.00626593]
[1725528389848,0.87222,2394.7,2394.4,0.42392593]
[1725528389849,2.89,2394.5,2394.4,0.42392593]
[1725528390044,3.30764,2394.5,2394.4,0.00626593]
[1725528390244,2.89,2394.5,2394.4,0.00626593]
[1725528390440,7.48364,2394.5,2394.4,0.00626593]
[1725528390645,17.73555,2394.5,2394.4,0.00626593]
[1725528390847,17.73555,2394.5,2394.0,0.41773]
[1725528390848,1.04417,2394.4,2394.0,0.41773]
[1725528391043,2.89,2394.1,2394.0,0.41773]
[1725528392056,3.6255,2394.2,2394.0,0.41773]
[1725528392249,3.2078,2394.2,2394.1,0.41771]
[1725528392553,0.84119,2394.3,2394.1,0.41771]
[1725528392755,0.84119,2394.3,2394.2,0.41769]
[1725528393145,0.4235,2394.3,2394.2,0.41769]
[1725528394456,0.4276,2394.4,2394.3,0.41767]
[1725528396946,3.2078,2394.8,2394.6,0.41761]
[1725528396947,0.41759,2394.8,2394.6,0.41761]
[1725528397257,0.4176,2394.7,2394.5,0.41763]
[1725528397453,0.4176,2394.7,2394.1,1.04426]
[1725528397756,0.4205,2394.6,2394.5,0.41763]
[1725528400257,0.87,2394.6,2394.4,0.41764]
[1725528400452,0.87,2394.6,2394.0,0.4142]
[1725528400652,7.4899,2394.5,2394.3,0.41766]
[1725528401556,0.41766,2394.4,2394.3,0.41766]
[1725528402162,7.90755,2394.5,2394.3,0.41766]
[1725528402348,7.90755,2394.5,2394.0,0.4142]
[1725528402349,0.87,2394.6,2394.5,0.41764]
[1725528404669,1.28762,2394.6,2394.5,0.41764]
[1725528405159,3.85626593,2394.9,2394.5,4.176]
[1725528405456,0.00626593,2394.9,2394.7,0.41759]
[1725528405859,0.42384593,2394.9,2394.8,0.41759]
[1725528406260,0.00626593,2394.9,2394.8,0.41759]
[1725528408456,0.00626593,2394.9,2394.8,4.59359]
[1725528408756,0.00626593,2394.9,2394.8,0.41759]
[1725528411368,0.00626593,2394.9,2394.8,5.63757]
[1725528411567,0.00626593,2394.9,2394.8,4.59359]
[1725528412361,0.00626593,2394.9,2394.8,0.41759]
[1725528413363,0.00626593,2394.9,2394.5,0.4269]
[1725528413567,0.46386593,2394.9,2394.8,0.41759]
[1725528413769,0.46386593,2394.9,2394.1,1.0899911]
[1725528413770,0.41764,2394.6,2394.1,1.0899911]
[1725528413979,2.89,2394.6,2394.0,1.9378]
[1725528414165,2.89,2394.6,2394.4,0.41765]
[1725528414361,7.59745022,2394.5,2393.8,0.00626593]
[1725528414673,3.62553,2394.0,2393.8,0.00626593]
[1725528416478,0.41774,2393.9,2393.8,0.00626593]
[1725528417071,3.30774,2393.9,2393.8,0.00626593]
[1725528419070,6.51553,2394.0,2393.8,0.00626593]
[1725528419572,6.51553,2394.0,2393.8,0.42402593]
[1725528419973,6.51553,2394.0,2393.8,0.00626593]
[1725528420369,6.51553,2394.0,2393.8,0.42402593]
[1725528421084,2.89,2394.0,2393.9,0.41774]
[1725528421272,0.84981,2394.1,2393.8,0.42401593]
[1725528421578,0.41773,2394.0,2393.8,0.42401593]
[1725528421877,0.84982,2394.1,2393.8,0.42401593]
[1725528422874,0.4321,2394.1,2393.8,0.00626593]
[1725528423072,3.2078,2394.3,2393.8,7.39086593]
[1725528423375,3.3307,2394.5,2394.0,0.41772]
[1725528423771,0.41766,2394.4,2394.0,41.21772]
[1725528424071,0.41766,2394.4,2394.1,0.41771]
[1725528424275,0.4467,2394.3,2394.1,0.41771]
[1725528424469,0.86438,2394.3,2394.0,41.21772]
[1725528424671,0.4467,2394.3,2394.1,0.41771]
[1725528424978,4.69799,2394.6,2394.1,0.41771]
[1725528424979,3.6539,2394.6,2394.1,3.2078]
[1725528425173,3.6539,2394.6,2394.4,0.41765]
[1725528425174,0.4461,2394.6,2394.4,0.41765]
[1725528425676,0.4461,2394.6,2394.3,0.41766]
[1725528425677,0.86372,2394.6,2394.3,0.41766]
[1725528425979,0.4461,2394.6,2394.4,0.41766]
[1725528426573,0.4461,2394.6,2394.4,0.41765]
[1725528427480,0.4461,2394.6,2394.5,0.41764]
[1725528427887,0.4461,2394.6,2394.4,0.41765]
[1725528428679,0.4461,2394.6,2394.5,0.41764]
[1725528429272,2.89,2394.8,2394.6,0.41762]
[1725528429273,3.30759,2394.8,2394.6,0.41762]
[1725528429473,2.89,2394.8,2394.6,0.41762]
[1725528429778,3.30759,2394.8,2394.5,0.41763]
[1725528430177,2.89,2394.8,2394.6,0.41762]
[1725528430383,2.89,2394.8,2394.3,0.4368]
[1725528430684,2.89,2394.8,2394.5,0.41763]
[1725528431366,3.21406593,2394.9,2394.3,0.4368]
[1725528431568,3.21406593,2394.9,2394.7,0.4176]
[1725528432382,0.41761,2394.7,2394.4,0.41765]
[1725528432582,3.21406593,2394.9,2394.5,0.41763]
[1725528432583,0.4176,2394.8,2394.5,0.41763]
[1725528432978,3.21406593,2394.9,2394.7,0.4176]
[1725528433172,3.21406593,2394.9,2394.3,4.25196]
[1725528433379,3.21406593,2394.9,2394.7,0.41759]
[1725528433579,3.21406593,2394.9,2394.3,4.25196]
[1725528433980,3.21406593,2394.9,2394.7,0.4176]
[1725528435682,3.21406593,2394.9,2394.8,0.41759]
[1725528436578,0.41759,2394.8,2394.3,3.2078]
[1725528436785,0.41759,2394.8,2394.6,0.41762]
[1725528437379,0.4176,2394.8,2394.3,3.2078]
[1725528437677,0.41761,2394.7,2394.5,0.41762]
[1725528438180,0.41762,2394.6,2394.5,0.41762]
[1725528438384,0.41762,2394.7,2394.5,0.41762]
[1725528438888,0.4176,2394.8,2394.6,0.41762]
[1725528439484,0.4176,2394.7,2394.6,0.41762]
[1725528439789,3.21406593,2394.9,2394.7,0.4176]
[1725528439790,3.2078,2394.8,2394.7,0.4176]
[1725528439983,0.41762,2394.7,2394.5,0.41763]
[1725528440281,0.41773,2394.1,2393.8,0.00626593]
[1725528440593,0.8652,2394.0,2393.9,0.41774]
[1725528442390,1.28293,2394.0,2393.8,0.42401593]
[1725528442585,0.8652,2394.0,2393.9,0.41774]
[1725528443286,0.4347,2394.0,2393.9,0.41774]
[1725528445482,0.4347,2394.0,2393.8,0.42401593]
[1725528445682,0.4347,2394.0,2393.9,0.41774]
[1725528447087,0.4347,2394.0,2393.8,0.00626593]
[1725528447388,0.4347,2394.0,2393.9,0.41774]
[1725528447576,0.4347,2394.0,2393.8,0.00626593]
[1725528447781,0.4347,2394.0,2393.9,0.41774]
[1725528448183,0.4347,2394.0,2393.8,0.42401593]
[1725528449085,0.85243,2394.0,2393.8,0.00626593]
[1725528449290,1.30003,2394.0,2393.8,0.42402593]
[1725528449591,0.8823,2394.0,2393.8,0.42402593]
[1725528449883,0.8823,2394.0,2393.9,0.41774]
[1725528450580,0.8823,2394.0,2393.8,0.00626593]
[1725528451090,0.8823,2394.0,2393.9,0.41774]
[1725528451986,0.4347,2394.0,2393.9,3.62554]
[1725528454381,4.04879,2394.3,2393.9,13.3846]
[1725528454382,3.2078,2394.3,2393.9,13.3846]
[1725528454587,0.41769,2394.3,2394.0,0.87352]
[1725528454889,0.4177,2394.2,2394.0,0.41772]
[1725528455077,0.4478,2394.1,2393.9,3.62553]
[1725528455283,0.4478,2394.1,2394.0,0.41773]
[1725528458287,3.2078,2394.3,2394.1,0.4177]
[1725528459687,3.62548,2394.3,2394.1,0.4177]
[1725528460591,3.2078,2394.3,2394.1,0.4177]
[1725528460797,3.2078,2394.3,2394.2,0.41769]
[1725528461193,4.5581,2394.4,2394.3,0.41767]
[1725528461396,0.4471,2394.4,2394.3,0.41767]
[1725528461598,0.4471,2394.4,2393.9,4.25215]
[1725528461800,0.86476,2394.4,2393.9,4.25215]
[1725528462089,0.86476,2394.4,2394.2,0.41768]
[1725528462499,3.2078,2394.3,2394.1,0.4177]
[1725528462802,3.2078,2394.3,2394.0,0.41772]
[1725528463199,0.4177,2394.2,2394.0,0.41772]
[1725528463401,0.4177,2394.2,2394.1,0.41771]
[1725528463601,3.62549,2394.3,2394.1,0.41771]
[1725528463999,4.38126,2394.4,2394.1,0.41771]
[1725528464198,3.62549,2394.3,2394.1,0.41771]
[1725528464896,3.62549,2394.3,2394.2,0.41769]
[1725528467603,6.96257,2394.4,2394.3,0.41767]
[1725528467802,4.07257,2394.4,2394.3,0.41767]
[1725528468103,3.6549,2394.4,2394.3,0.41767]
[1725528468598,4.07256,2394.4,2394.2,0.41768]
[1725528468798,4.07256,2394.4,2394.0,3.2078]
[1725528468799,4.07256,2394.4,2394.3,0.41767]
[1725528472498,0.4471,2394.4,2394.3,0.41767]
[1725528476003,4.5686,2394.8,2394.7,0.4176]
[1725528476206,0.00626593,2394.9,2394.8,0.41759]
[1725528476710,0.00626593,2394.9,2394.8,1.61759]
[1725528477610,0.00626593,2394.9,2394.8,5.79359]
[1725528478015,0.00626593,2394.9,2394.8,7.48359]
[1725528478511,3.2078,2395.2,2395.1,0.41753]
[1725528479635,0.4649,2395.3,2395.2,0.41752]
[1725528479909,0.00626593,2395.4,2395.0,3.2078]
[1725528479910,0.00626593,2395.4,2395.3,0.4175]
[1725528480210,0.00626593,2395.4,2395.0,3.21406593]
[1725528480211,0.00626593,2395.4,2395.2,0.41751]
[1725528480602,0.00626593,2395.4,2395.1,0.41752]
[1725528481206,0.00626593,2395.4,2395.2,0.41751]
[1725528482009,0.00626593,2395.4,2395.3,0.4175]
[1725528483016,0.00626593,2395.4,2395.3,4.5919]
[1725528483405,0.00626593,2395.4,2395.3,8.2428]
[1725528484013,0.43,2395.9,2395.3,8.2428]
[1725528484014,0.43,2395.9,2395.3,13.8253]
[1725528484310,0.43,2395.9,2395.7,0.41742]
[1725528484910,0.43,2395.9,2395.8,0.41741]
[1725528485114,0.43,2395.9,2395.6,3.2078]